Cogmind - Beta 11.1 @@@ ROGUE MODE // 2022.05.15 @ 02:08:09 Player: laserbat Result: Destroyed by H-66 Slayer with Gauss Rifle Performance ------------- Evolutions (4) 2000 Regions Visited (8) 1600 Robots Destroyed (6) 30 Value Destroyed (160) 160 Prototype IDs (24) 480 Alien Tech Used (0) 0 Bonus (948) 948 TOTAL SCORE: 5218 Bonus ------- Pacifist 634 Follower Combat Kills 14 Aligned with FarCom 300 Cogmind --------- Core Integrity 0/850 Matter 300/300 Energy 98/100 System Corruption 1% Temperature Cool (0) Movement Core (50) Location -6/Lower Caves Parts ------- > --- POWER (9) -------- (None) > --- PROPULSION (2) --- (None) > --- UTILITY (2) ------ (None) > --- WEAPON (2) ------- (None) > --- INVENTORY (5) ---- High-capacity Storage Unit High-capacity Matter Pod (200) Faulty Experimental Sensor Array Advanced Targeting Computer Stasis Canceller Peak State ------------ > --- POWER ------------ Deuterium Engine Light Deuterium Engine > --- PROPULSION ------- Potential Leg Potential Leg > --- UTILITY ---------- High-capacity Storage Unit Improved Propulsion Shielding > --- WEAPON ----------- (None) > --- INVENTORY -------- High-capacity Matter Pod Experimental Sensor Array Advanced Targeting Computer System Shield [Rating: 31] Favorites ----------- Power Deuterium Engine Engine Deuterium Engine Power Core Light Nuclear Core Propulsion Potential Leg Leg Potential Leg Hover Unit Cooled Aerolev Unit Utility High-capacity Storage Unit Storage High-capacity Storage Unit Hackware Hacking Suite Protection Improved Propulsion Shielding Weapon Axe Energy Gun EM Pulse Gun Slashing Weapon Axe Build | -11 -10 -10 -10 -9 -8 -7 -6 -6 ------- Run | Scr Mat Min Exi Min Mat Fac Fac Low Slots Evolved 8 | . . . . . 4 2 2 . Power 8 | . . . . . 4 2 2 . Propulsion . | . . . . . . . . . Utility . | . . . . . . . . . Weapon . | . . . . . . . . . Parts Attached 16 | . . . 3 . 5 4 3 1 Power 6 | . . . . . 4 1 1 . Engine 5 | . . . . . 4 . 1 . Core 1 | . . . . . . 1 . . Reactor . | . . . . . . . . . Propulsion 4 | . . . 2 . . . 1 1 Treads . | . . . . . . . . . Leg 2 | . . . 2 . . . . . Wheel . | . . . . . . . . . Hover 2 | . . . . . . . 1 1 Flight . | . . . . . . . . . Utility 4 | . . . 1 . 1 2 . . Device . | . . . . . . . . . Storage 1 | . . . 1 . . . . . Processor . | . . . . . . . . . Hackware 2 | . . . . . . 2 . . Protection 1 | . . . . . 1 . . . Artifact . | . . . . . . . . . Weapon 2 | . . . . . . 1 1 . Energy Gun . | . . . . . . . . . Energy Cannon . | . . . . . . . . . Ballistic Gun . | . . . . . . . . . Ballistic Cannon . | . . . . . . . . . Launcher . | . . . . . . . . . Special Weapon . | . . . . . . . . . Impact Weapon . | . . . . . . . . . Slashing Weapon 2 | . . . . . . 1 1 . Piercing Weapon . | . . . . . . . . . Special Melee Weapon . | . . . . . . . . . Unidentified Prototypes 1 | . . . . . . . 1 . Parts Lost 14 | . . . . . 4 4 . 6 Power 5 | . . . . . 3 2 . . Propulsion 4 | . . . . . . 2 . 2 Utility 3 | . . . . . 1 . . 2 Weapon 2 | . . . . . . . . 2 Highest Loss Streak 2 | . . . . . 2 2 . 2 To Critical Strikes . | . . . . . . . . . Average Slot Usage (%) 28 | . . . 21 42 43 30 25 22 Engine 3 | . . . . . 16 3 . . Leg 10 | . . . 18 28 18 10 . . Hover 1 | . . . . . . . 3 4 Storage 4 | . . . 2 14 9 4 . . Hackware 4 | . . . . . . 6 13 8 Slashing Weapon 2 | . . . . . . 1 7 9 Naked Turns 243 | . 8 175 59 . . . . 1 Heaviest Build 58 | . . . 40 40 58 54 6 6 Greatest Support 60 | 3 3 3 60 60 60 60 9 18 Greatest Overweight (x) 13 | . . . . . . 13 . 1 Average Overweight (x) . | . . . . . . . . . Largest Inventory Capacity 20 | 8 5 5 20 20 20 20 5 5 Average Capacity 11 | 5 5 5 7 20 20 15 5 5 Most Carried 6 | 5 . 1 2 2 6 5 5 5 Average Carried 3 | 2 . . 1 2 4 4 4 5 Final Capacity 20 | 5 5 5 20 20 20 5 5 5 Final Carried 5 | . . 1 2 2 4 4 5 5 Class Distribution -------------------- 72% | Mutant 27% | Hacker-Mutant Dominant Class ---------------- Mutant | -10/Mines Mutant | -10/Exiles Mutant | -9/Mines Mutant | -8/Materials Mutant | -7/Factory Hacker-Mutant | -6/Factory Mutant | -6/Lower Caves Resources | -11 -10 -10 -10 -9 -8 -7 -6 -6 ----------- Run | Scr Mat Min Exi Min Mat Fac Fac Low Matter Collected 326 | 200 . . 30 30 . 29 27 10 Remotely . | . . . . . . . . . Salvage Created 269 | . . . . . . 29 138 102 Parts 10 | . . . . . . 2 3 5 Haulers Intercepted 1 | . . . . . . . 1 . Recyclers Shooed . | . . . . . . . . . Parts Field Recycled . | . . . . . . . . . Retrieved Matter . | . . . . . . . . . Parts Self-Destructed 4 | . . . . . . . . 4 Prevented . | . . . . . . . . . Kills | -11 -10 -10 -10 -9 -8 -7 -6 -6 ------- Run | Scr Mat Min Exi Min Mat Fac Fac Low Combat Hostiles Destroyed 3 | . . . . . . . . 3 Melee 3 | . . . . . . . . 3 Classes Destroyed 5 | . . . . . . 1 2 2 Tunneler 1 | . . . . . . . 1 . Hauler 1 | . . . . . . . 1 . Operator 1 | . . . . . . 1 . . Swarmer 2 | . . . . . . . . 2 Programmer 1 | . . . . . . . . 1 Best Kill Streak 2 | . . . . . . 1 1 2 Combat Bots Only 2 | . . . . . . . . 2 Max Kills in Single Turn 1 | . . . . . . 1 1 1 Gunslinging . | . . . . . . . . . Exploded . | . . . . . . . . . Melee 1 | . . . . . . . . 1 Uniques/NPCs Destroyed . | . . . . . . . . . Combat | -11 -10 -10 -10 -9 -8 -7 -6 -6 -------- Run | Scr Mat Min Exi Min Mat Fac Fac Low Damage Taken 3234 | . . . . . 1183 915 . 1136 Core 1521 | . . . . . 273 391 . 857 Absorbed by Shields . | . . . . . . . . . Redirected to Shielding 122 | . . . . . 122 . . . Core Remaining (%) 73 | 100 . . . 100 50 44 . . Volleys Fired . | . . . . . . . . . Largest . | . . . . . . . . . Hottest . | . . . . . . . . . Shots Fired . | . . . . . . . . . Gun . | . . . . . . . . . Cannon . | . . . . . . . . . Launcher . | . . . . . . . . . Special . | . . . . . . . . . Kinetic . | . . . . . . . . . Thermal . | . . . . . . . . . Explosive . | . . . . . . . . . Electromagnetic . | . . . . . . . . . Robot Hit Streak . | . . . . . . . . . Robot Miss Streak . | . . . . . . . . . Penetration Max . | . . . . . . . . . Secondary Targets . | . . . . . . . . . Shots Hit Robots 9 | . . . . . . 1 2 6 Core Hits 3 | . . . . . . 1 . 2 Critical Kills . | . . . . . . . . . Critical Parts Destroyed . | . . . . . . . . . Critical Strikes 1 | . . . . . . . . 1 Sever 1 | . . . . . . . . 1 Melee Attacks 14 | . . . . . . 2 3 9 Impact . | . . . . . . . . . Slashing 14 | . . . . . . 2 3 9 Piercing . | . . . . . . . . . Sneak Attacks 2 | . . . . . . . 2 . Combat Hostiles . | . . . . . . . . . Follow-up Attacks 1 | . . . . . . . . 1 Damage Inflicted 522 | . . . . . 55 98 138 231 Guns . | . . . . . . . . . Cannons . | . . . . . . . . . Explosions . | . . . . . . . . . Melee 410 | . . . . . . 41 138 231 Ramming 112 | . . . . . 55 57 . . Kinetic . | . . . . . . . . . Thermal . | . . . . . . . . . Explosive . | . . . . . . . . . Electromagnetic . | . . . . . . . . . Impact . | . . . . . . . . . Slashing 410 | . . . . . . 41 138 231 Piercing . | . . . . . . . . . Highest Corruption 1 | . . . . . . . . 1 Average Corruption 1 | . . . . . . . . 1 Corruption Purged . | . . . . . . . . . Corruption Blocked . | . . . . . . . . . Overload Shots . | . . . . . . . . . Overflow Damage 116 | . . . . . . 7 74 35 Projectiles . | . . . . . . . . . Explosions . | . . . . . . . . . Melee 116 | . . . . . . 7 74 35 Knockbacks 1 | . . . . . . 1 . . Impact 1 | . . . . . . 1 . . Kinetic . | . . . . . . . . . Secondary . | . . . . . . . . . Self-Inflicted Damage . | . . . . . . . . . Shots . | . . . . . . . . . Rammed . | . . . . . . . . . Targets Rammed 4 | . . . . . 3 1 . . Kicked 4 | . . . . . 3 1 . . Crushed . | . . . . . . . . . Highest Temperature 11 | . . . . . 11 . . . Average Temperature 4 | . . . . . 4 . . . Received Heat Transfer 633 | . . . . . 414 219 . . Siege Activations . | . . . . . . . . . Robots Corrupted . | . . . . . . . . . Combat Hostiles . | . . . . . . . . . Parts Fried . | . . . . . . . . . Impact Corruptions 1 | . . . . . . 1 . . Robots Melted . | . . . . . . . . . Combat Hostiles . | . . . . . . . . . Parts Melted 1 | . . . . . . . . 1 Heat Transferred . | . . . . . . . . . Parts Sabotaged . | . . . . . . . . . Parts Stolen . | . . . . . . . . . Parts Stripped . | . . . . . . . . . Power Chain Reactions . | . . . . . . . . . Missiles Intercepted . | . . . . . . . . . Alert | -11 -10 -10 -10 -9 -8 -7 -6 -6 ------- Run | Scr Mat Min Exi Min Mat Fac Fac Low Peak Influence 178 | . . 53 . . 97 178 27 . Initial 41 | . . . . . . 41 14 . Average 32 | . . 17 . . 34 60 20 . Maximum Alert Level . | . . . . . . . . . Low Security (%) 100 | 100 100 100 . 100 100 100 100 . Level 1 . | . . . . . . . . . Level 2 . | . . . . . . . . . Level 3 . | . . . . . . . . . Level 4 . | . . . . . . . . . Level 5 . | . . . . . . . . . High Security . | . . . . . . . . . Max Security . | . . . . . . . . . Squads Dispatched 3 | . . . . . 2 1 . . Investigation 1 | . . . . . 1 . . . Extermination . | . . . . . . . . . Reinforcement 2 | . . . . . 1 1 . . Assault . | . . . . . . . . . Garrison . | . . . . . . . . . Intercept . | . . . . . . . . . Searches Triggered . | . . . . . . . . . Construction Impeded . | . . . . . . . . . Haulers Reinforced . | . . . . . . . . . Active Scanning Responses . | . . . . . . . . . Cargo Convoy Interrupts . | . . . . . . . . . Stealth | -11 -10 -10 -10 -9 -8 -7 -6 -6 --------- Run | Scr Mat Min Exi Min Mat Fac Fac Low Distress Signals 3 | . . . . . 3 . . . Communications Jammed . | . . . . . . . . . Distress Signals . | . . . . . . . . . Times Spotted 48 | . . . . . 27 12 . 9 Peak Tracking Total 23 | . . . . . 23 4 . 7 Tactical Retreats 9 | . . . . . 2 6 . 1 Traps | -11 -10 -10 -10 -9 -8 -7 -6 -6 ------- Run | Scr Mat Min Exi Min Mat Fac Fac Low Traps Triggered 2 | . . . . . . 1 1 . Indirectly . | . . . . . . . . . Trap Hack Attempts . | . . . . . . . . . Triggered . | . . . . . . . . . Disarmed . | . . . . . . . . . Reprogrammed . | . . . . . . . . . Reused . | . . . . . . . . . Traps Extracted . | . . . . . . . . . Installed . | . . . . . . . . . Triggered 1 | . . . . . . . . 1 Machines | -11 -10 -10 -10 -9 -8 -7 -6 -6 ---------- Run | Scr Mat Min Exi Min Mat Fac Fac Low Machines Disabled . | . . . . . . . . . Max in Single Turn . | . . . . . . . . . Machines Sabotaged . | . . . . . . . . . Garrisons Compromised . | . . . . . . . . . Overloaded Fab Kills . | . . . . . . . . . Hacking | -11 -10 -10 -10 -9 -8 -7 -6 -6 --------- Run | Scr Mat Min Exi Min Mat Fac Fac Low Machines Accessed 9 | . . 1 1 . 3 2 2 . Terminals 8 | . . 1 . . 3 2 2 . Fabricators . | . . . . . . . . . Repair Stations . | . . . . . . . . . Recycling Units . | . . . . . . . . . Scanalyzers . | . . . . . . . . . Garrison Access . | . . . . . . . . . Total Hacks 21 | . . 3 1 . 9 4 4 . Successful 10 | . . 2 1 . 3 3 1 . Failed 11 | . . 1 . . 6 1 3 . Catastrophic 5 | . . . . . 4 1 . . Database Lockouts . | . . . . . . . . . Manual 20 | . . 2 1 . 9 4 4 . Terminals 20 | . . 3 . . 9 4 4 . Fabricators . | . . . . . . . . . Repair Stations . | . . . . . . . . . Recycling Units . | . . . . . . . . . Scanalyzers . | . . . . . . . . . Garrison Access . | . . . . . . . . . Terminal Hacks 6 | . . 2 1 . 1 2 . . Level Access Points 2 | . . . . . 1 1 . . Branch Access Points 1 | . . 1 . . . . . . Terminal Index 1 | . . . . . . 1 . . Zone Layout 1 | . . 1 . . . . . . EX-Prototype ID Bank 1 | . . . 1 . . . . . Fabricator Hacks . | . . . . . . . . . Repair Station Hacks . | . . . . . . . . . Recycling Unit Hacks . | . . . . . . . . . Scanalyzer . | . . . . . . . . . Garrison Access Hacks . | . . . . . . . . . Unauthorized Hacks 4 | . . . . . 2 1 1 . Terminals 4 | . . . . . 2 1 1 . Botnet 4 | . . . . . 2 1 1 . Fabricators . | . . . . . . . . . Repair Stations . | . . . . . . . . . Recycling Units . | . . . . . . . . . Scanalyzers . | . . . . . . . . . Garrison Access . | . . . . . . . . . Data Cores Recovered . | . . . . . . . . . Used . | . . . . . . . . . Hacking Detections 5 | . . . . . 3 . 2 . Full Trace Events 1 | . . . . . 1 . . . Feedback Events . | . . . . . . . . . Feedback Blocked . | . . . . . . . . . Robot Schematics Acquired . | . . . . . . . . . Robots Built . | . . . . . . . . . Authchips . | . . . . . . . . . Time . | . . . . . . . . . Total Robot Build Rating . | . . . . . . . . . Part Schematics Acquired . | . . . . . . . . . Parts Built . | . . . . . . . . . Authchips . | . . . . . . . . . Time . | . . . . . . . . . Total Part Build Rating . | . . . . . . . . . Parts Repaired . | . . . . . . . . . Time . | . . . . . . . . . Parts Recycled . | . . . . . . . . . Recycled Matter . | . . . . . . . . . Retrieved Matter . | . . . . . . . . . Retrieved Components . | . . . . . . . . . Parts Scanalyzed . | . . . . . . . . . Part Schematics Acquired . | . . . . . . . . . Parts Damaged . | . . . . . . . . . Bothacking | -11 -10 -10 -10 -9 -8 -7 -6 -6 ------------ Run | Scr Mat Min Exi Min Mat Fac Fac Low Used RIF Installer . | . . . . . . . . . Robots Hacked . | . . . . . . . . . Non-combat . | . . . . . . . . . Combat . | . . . . . . . . . Robot Hacks Applied . | . . . . . . . . . Relay Couplers Released . | . . . . . . . . . Fabnet Peak Effective % . | . . . . . . . . . Robots Rewired . | . . . . . . . . . Allies Hacked . | . . . . . . . . . Hacks Repelled . | . . . . . . . . . Allies | -11 -10 -10 -10 -9 -8 -7 -6 -6 -------- Run | Scr Mat Min Exi Min Mat Fac Fac Low Total Allies 2 | . . 2 . . . . . . Largest Group 2 | . . 2 1 . . . . . Highest-Rated Group 41 | . . 41 31 . . . . . Highest-Rated Ally 31 | . . 31 31 . . . . . Total Orders . | . . . . . . . . . Ally Attacks 6 | . . 6 . . . . . . Total Damage 84 | . . 84 . . . . . . Kills 2 | . . 2 . . . . . . Allies Corrupted . | . . . . . . . . . Allies Melted . | . . . . . . . . . Intel | -11 -10 -10 -10 -9 -8 -7 -6 -6 ------- Run | Scr Mat Min Exi Min Mat Fac Fac Low Robot Analysis Total . | . . . . . . . . . Derelict Logs Recovered 2 | . . 1 . 1 . . . . Drone Launches . | . . . . . . . . . Drone Recoveries . | . . . . . . . . . Exploration | -11 -10 -10 -10 -9 -8 -7 -6 -6 ------------- Run | Scr Mat Min Exi Min Mat Fac Fac Low Turns Passed 1790 | 4 8 175 174 188 299 457 348 137 Spaces Moved 2457 | 1 15 192 240 206 318 616 638 231 Core 933 | 1 15 192 117 . . 261 245 102 Treads . | . . . . . . . . . Legs 1002 | . . . 123 206 318 355 . . Wheels . | . . . . . . . . . Hover 522 | . . . . . . . 393 129 Flight . | . . . . . . . . . Fastest Speed 45 | 50 50 50 50 90 90 45 50 46 Average Speed 66 | 50 50 50 70 90 90 72 50 49 Slowest Speed 700 | 50 50 50 90 90 90 700 50 100 Overloaded Moves 66 | . . . . . . 36 . 30 Propulsion Burnouts . | . . . . . . . . . Robots Hopped . | . . . . . . . . . Cave-ins Triggered . | . . . . . . . . . Exploration Rate (%) 27 | 1 7 47 61 35 31 21 15 29 Regions Visited 8 Branch Regions 4 Pre-discovered Areas . | . . . . . . . . . Known Exits Taken 2 | . . . . . 1 1 . . Unknown Exits Taken 6 | 1 1 1 1 1 . . 1 . Scrap Searched 2 | . . . . . . . . 2 Spaces Dug 2 | . . . . . . 1 1 . Terrain Destroyed 2 | . . . . . . 1 1 . Melee 2 | . . . . . . 1 1 . Projectile . | . . . . . . . . . AOE . | . . . . . . . . . Terrain Rammed . | . . . . . . . . . Walls Destroyed . | . . . . . . . . . Machines Disabled . | . . . . . . . . . Actions | -11 -10 -10 -10 -9 -8 -7 -6 -6 --------- Run | Scr Mat Min Exi Min Mat Fac Fac Low Total 2594 | 6 14 270 243 208 329 624 660 240 Wait 81 | . . 78 . 3 . . . . Move 2449 | . 14 191 239 205 317 615 637 231 Hop . | . . . . . . . . . Pick Up 8 | . . 1 1 . 4 1 1 . Fast Attach 12 | . . . 3 . 3 2 3 1 Attach 4 | . . . . . 2 2 . . Detach 1 | . . . . . . 1 . . Swap . | . . . . . . . . . Drop 7 | 6 . . . . . . 1 . Fire . | . . . . . . . . . Melee 13 | . . . . . . 2 3 8 Ram . | . . . . . . . . . Kick 4 | . . . . . 3 1 . . Crush . | . . . . . . . . . Escape Stasis 15 | . . . . . . . 15 . Rewire . | . . . . . . . . . Trap . | . . . . . . . . . Miscellaneous . | . . . . . . . . . Route ------- -11/Scrapyard -10/Materials -10/Mines (discovered 2 exits: [*Mat] / *Exi) -10/Exiles -9/Mines -8/Materials (discovered 3 exits: *Fac x3) -7/Factory (discovered 4 exits: *Fac x4) -6/Factory -6/Lower Caves History --------- Turn | Location | Event 2 | -11/Scrapyard | Released all parts (6) 5 | -11/Scrapyard | Discovered new exit (range 0) 5 | -11/Scrapyard | Entered Materials 5 | -10/Materials | Discovered new exit (range 15) 13 | -10/Materials | Entered Mines 27 | -10/Mines | Found a damaged Exp. Sensor Array with a note attached 28 | -10/Mines | Found Prototype Device 44 | -10/Mines | Discovered new exit (range 8) 53 | -10/Mines | Learned Materials emergency access door positions 108 | -10/Mines | Deemed a non-threat by the Exiles lab entrance 108 | -10/Mines | Discovered new exit (range 5) 160 | -10/Mines | Met a Derelict bent on vengeance 188 | -10/Mines | Entered Exiles 188 | -10/Exiles | Accompanied by 1 ally 201 | -10/Exiles | Met 8R-AWN 209 | -10/Exiles | Met EX-HEX 218 | -10/Exiles | Led the pair of lost Derelicts to a safe place 223 | -10/Exiles | Met EX-BIN 229 | -10/Exiles | Aligned with FarCom system 230 | -10/Exiles | Given EX-Vault access code 242 | -10/Exiles | Opened EX-Vault 247 | -10/Exiles | Found Potential Leg 249 | -10/Exiles | Found Potential Leg 269 | -10/Exiles | Warned to stay clear of 0b10 Research branches 278 | -10/Exiles | Exiles lab attacked by MAIN.C 308 | -10/Exiles | Build established: Mutant 352 | -10/Exiles | Discovered new exit (range 14) 362 | -10/Exiles | Left Exiles lab with Potential Leg 362 | -10/Exiles | Entered Mines 370 | -9/Mines | Learned Materials trap positions 538 | -9/Mines | Discovered new exit (range 13) 550 | -9/Mines | Entered Materials 550 | -8/Materials | Evolved 4 slots: Power x4 551 | -8/Materials | Loaded intel: 5 trap records 714 | -8/Materials | Identified exit to Factory 849 | -8/Materials | Entered Factory 849 | -7/Factory | Evolved 2 slots: Power x2 1230 | -7/Factory | Identified exit to Factory 1242 | -7/Factory | Core integrity fell below 50% 1306 | -7/Factory | Entered another Factory area 1306 | -6/Factory | Evolved 2 slots: Power x2 1469 | -6/Factory | Build established: Hacker-Mutant 1650 | -6/Factory | Discovered new exit (range 11) 1654 | -6/Factory | Entered Lower Caves 1771 | -6/Lower Caves | Core integrity fell below 50% 1787 | -6/Lower Caves | Core integrity fell below 20% 1791 | -6/Lower Caves | Destroyed by H-66 Slayer with Gauss Rifle Last Messages --------------- 01687_ Found 43 Matter. 01692_ P-60 Hacker: "UNIQUE TECHNOLOGY DETECTED, NEUTRALIZE FOR ANALYSIS." 01692_ Penetrated by Slug. 01692_ System Shield destroyed. 01692_ Gravmag System destroyed. 01692_ Slug penetrates Wall. 01697_ Penetrated by Slug. 01724_ Axe follow-up attack on S-27 Virus. 01724_ S-27 Virus destroyed. 01734_ Axe destroyed. 01735_ S-27 Virus destroyed. 01741_ Cld. Aerolev Unit destroyed. 01748_ Penetrated by Slug. 01756_ Slug penetrates Wall. 01770_ Penetrated by Slug. 01773_ Power Sword destroyed. 01785_ Penetrated by Slug. 01788_ Slug penetrates Wall. 01790_ Hacking Suite destroyed. 01791_ Penetrated by Slug. Map ----- +----------------------------------------------------+ | ???????????????????? ## ????# #??# #????#### | | ???????????????????? ###?# #### #??### # | | ???????????????????? ?# #??# | | ????????????????????? #### #####??# | | ?????????????????????? #### ####### | | ???????????????????????? #?# | | ?????????????????????????# ### | | ??????????????????????????# ####### ##### | | ????????????????????????????# #??### #### | | ?????????????????????????####% #### ## | | ???????????????????###??## # | | ???????????????????# ### = # | | ???????????????##??# % #### ##### # | | ??????????????## #### #??# ###???## ## | | ??????????????# ### #??# #??????###? | | ??????????????# ### #??# #?????????? | | ???????????????# #?# ##??# #?????????? | | ???????????????# #?# #???# ?????????? | | ???????????????## #?# #??? % ?????????? | | ????????????????# ### #??? %????????? | | ????????????????# ## #?? %% ????????? | | ????????????????# ### #?? %%! %????????? | | ????????????????### #?###?? ## % ???????? | | ??????????????????# #??????##??###???????? | | ??????????????????## #????????????????????? | | ???????????????????##### @ ###??????????????????? | | ???????????????????????## hh ##??#########??????? | | ????????????????????????## ##?# ###????? | | ?????????????????????????# #?## #????? | | ?????????????????????????## #??# ###????? | | ?????????????????????????## ##### ##??????? | | ????????????????????????## ### ##???????? | | ????????????????????????# s## #????????? | | ????????????????????????# ##p #????????? | | ???????????????????????# ### % #????????? | | ???????????????????????## ##?## #????????? | | ????????????????????????###???## ## ##????????? | | ???????????????????????????????# #######?????????? | | ???????????????????????????????###???????????????? | | ?????????????????????????????????????????????????? | | ?????????????????????????????????????????????????? | | ?????????????????????????????????????????????????? | | ?????????????????????????????????????????????????? | | ?????????????????????????????????????????????????? | | ?????????????????????????????????????????????????? | | ?????????????????????????????????????????????????? | | ?????????????????????????????????????????????????? | | ?????????????????????????????????????????????????? | | ?????????????????????????????????????????????????? | | ?????????????????????????????????????????????????? | +----------------------------------------------------+ Best States ------------- Heat Dissipation 37 Energy Generation 23 Energy Capacity 450 Matter Stores 300 Matter Capacity 300 Sight Range 16 Terrain Scan Density 10 Propulsion Shielding 66 Evasion (%) 66 Offensive Hacking 10 Defensive Hacking 10 Item Schematics ----------------- None Robot Schematics ------------------ None Fabricated ------------ Nothing Alien Tech Used ----------------- None Achievements -------------- None Challenges ------------ None Game ------ Seed ImprinterGyrokineticCharge Manual? 0 Play Time 00:20:18 Cumulative 260.4 hours Start 2022.05.15 @ 01:29:44 End 2022.05.15 @ 02:08:09 Sessions 1 Manual Loads 0 Difficulty Rogue Special Mode None Game No. 431 Rogue 428 Adventurer 0 Explorer 3 Win Type - Total 9 Types 9/0/0/0/0/0/0/0/0 Lore% 71 Gallery% 75 Achievement% 63 Wizard Run 0 Options --------- ASCII 1 Keyboard 1 Movement Vi Keybinds 0 Fullscreen 1 Font 18/SmallcapsGlow Map View 76x50 Tactical HUD 1 Map Filters NONE Filters NONE Steam 1 RUN: 1eca34c5-4708-4548-ae0e-86ab43ee0e26